[Event "Early-Titled-Tuesday-Blitz-September-26-2023"]
[Site "Chess.com"]
[Date "2023.09.26"]
[Round "2"]
[White "profedechess93"]
[Black "mapleaff"]
[Result "1-0"]
[WhiteElo "2677"]
[BlackElo "2346"]
[TimeControl "180+1"]
[EndTime "8:18:22 PDT"]
[Termination "profedechess93 won by resignation"]

1. e4 {[%clk 0:03:00.9]} 1... e5 {[%clk 0:03:00.2]} 2. Nf3 {[%clk 0:03:00.9]}
2... Nc6 {[%clk 0:02:59.9]} 3. Bc4 {[%clk 0:03:01.5]} 3... Bc5 {[%clk
0:02:59.1]} 4. b4 {[%clk 0:03:01.2]} 4... Bxb4 {[%clk 0:02:57.6]} 5. c3 {[%clk
0:03:01.9]} 5... Ba5 {[%clk 0:02:56.1]} 6. d4 {[%clk 0:03:02.4]} 6... exd4
{[%clk 0:02:56.5]} 7. Qb3 {[%clk 0:03:02.8]} 7... Qe7 {[%clk 0:02:44.2]} 8. O-O
{[%clk 0:03:02.2]} 8... Bb6 {[%clk 0:02:42.6]} 9. Ba3 {[%clk 0:02:50.5]} 9... d6
{[%clk 0:02:41.7]} 10. e5 {[%clk 0:02:38.5]} 10... Na5 {[%clk 0:02:34.8]} 11.
Qa4+ {[%clk 0:02:38.2]} 11... Bd7 {[%clk 0:02:33.2]} 12. Bb5 {[%clk 0:02:38.5]}
12... Bxb5 {[%clk 0:02:31.5]} 13. Qxb5+ {[%clk 0:02:39.1]} 13... Qd7 {[%clk
0:02:32.1]} 14. Qe2 {[%clk 0:02:15.4]} 14... O-O-O {[%clk 0:02:11.8]} 15. exd6
{[%clk 0:02:15.2]} 15... cxd6 {[%clk 0:02:05]} 16. cxd4 {[%clk 0:02:11.5]} 16...
Nf6 {[%clk 0:02:04.1]} 17. Nc3 {[%clk 0:02:09.7]} 17... Rhe8 {[%clk 0:02:03.5]}
18. Qd3 {[%clk 0:02:03.1]} 18... Kb8 {[%clk 0:02:03]} 19. Nb5 {[%clk 0:01:26.1]}
19... Ne4 {[%clk 0:01:47.2]} 20. Rfe1 {[%clk 0:01:21.7]} 20... f5 {[%clk
0:01:47.1]} 21. Rab1 {[%clk 0:01:16.7]} 21... Qc6 {[%clk 0:01:33.1]} 22. Rec1
{[%clk 0:01:01.1]} 22... Qd5 {[%clk 0:01:29.1]} 23. Nd2 {[%clk 0:00:41.9]} 23...
Qxa2 {[%clk 0:01:20.5]} 24. Nxe4 {[%clk 0:00:37.3]} 24... fxe4 {[%clk
0:01:18.9]} 25. Qg3 {[%clk 0:00:37.9]} 25... Nc4 {[%clk 0:01:01.5]} 26. Ra1
{[%clk 0:00:33.1]} 26... Qe2 {[%clk 0:00:55.6]} 27. Bxd6+ {[%clk 0:00:30.5]}
27... Nxd6 {[%clk 0:00:34.3]} 28. Nxd6 {[%clk 0:00:31.4]} 28... Ka8 {[%clk
0:00:12.9]} 29. Nxe8 {[%clk 0:00:27.4]} 29... Rxe8 {[%clk 0:00:13.8]} 30. Qe5
{[%clk 0:00:24.7]} 30... Rf8 {[%clk 0:00:10.9]} 31. Qf4 {[%clk 0:00:21.8]} 31...
Re8 {[%clk 0:00:08]} 32. Qe3 {[%clk 0:00:22.2]} 32... Qb2 {[%clk 0:00:04.7]} 33.
Rcb1 {[%clk 0:00:17.9]} 33... Qxd4 {[%clk 0:00:02.1]} 34. Qxd4 {[%clk
0:00:16.6]} 34... Bxd4 {[%clk 0:00:03]} 35. Ra4 {[%clk 0:00:17.3]} 35... Bc5
{[%clk 0:00:02.7]} 36. Rc4 {[%clk 0:00:17.2]} 36... b6 {[%clk 0:00:03]} 37. Re1
{[%clk 0:00:16.3]} 37... e3 {[%clk 0:00:03.3]} 38. fxe3 {[%clk 0:00:16.5]} 38...
Rxe3 {[%clk 0:00:03.7]} 39. Rxe3 {[%clk 0:00:16.1]} 39... Bxe3+ {[%clk
0:00:04.6]} 40. Kf1 {[%clk 0:00:16.9]} 40... Kb7 {[%clk 0:00:05.1]} 41. Ke2
{[%clk 0:00:17.4]} 41... Bc5 {[%clk 0:00:06]} 42. Rg4 {[%clk 0:00:17.6]} 42...
a5 {[%clk 0:00:06.9]} 43. Rxg7+ {[%clk 0:00:17.8]} 43... Kc6 {[%clk 0:00:07.8]}
44. Kd3 {[%clk 0:00:18.3]} 44... a4 {[%clk 0:00:08.7]} 45. Rxh7 {[%clk
0:00:18.5]} 45... a3 {[%clk 0:00:09.3]} 46. Kc2 {[%clk 0:00:17.3]} 46... b5
{[%clk 0:00:09.5]} 47. Kb3 {[%clk 0:00:17.4]} 47... b4 {[%clk 0:00:10.1]} 48.
Rh4 {[%clk 0:00:16.4]} 48... Bd6 {[%clk 0:00:10.1]} 49. Rc4+ {[%clk 0:00:15.4]}
49... Kd5 {[%clk 0:00:09.9]} 50. h4 {[%clk 0:00:12.7]} 50... a2 {[%clk
0:00:09.8]} 51. Rc1 {[%clk 0:00:11]} 51... a1=Q {[%clk 0:00:09.6]} 52. Rxa1
{[%clk 0:00:10.8]} 52... Be5 {[%clk 0:00:10.1]} 53. Rf1 {[%clk 0:00:11.3]} 53...
Ke4 {[%clk 0:00:09.9]} 54. g4 {[%clk 0:00:11.8]} 54... Bg3 {[%clk 0:00:09.3]}
55. h5 {[%clk 0:00:12.1]} 1-0

[Event "Early-Titled-Tuesday-Blitz-September-26-2023"]
[Site "Chess.com"]
[Date "2023.09.26"]
[Round "2"]
[White "Mr_Lion22"]
[Black "MokshanovAlexey"]
[Result "1/2-1/2"]
[WhiteElo "2480"]
[BlackElo "2673"]
[TimeControl "180+1"]
[EndTime "8:18:28 PDT"]
[Termination "Game drawn by repetition"]

1. d4 {[%clk 0:02:56.7]} 1... d5 {[%clk 0:02:59.9]} 2. c4 {[%clk 0:02:57.5]}
2... e6 {[%clk 0:03:00.3]} 3. Nc3 {[%clk 0:02:58.2]} 3... Nf6 {[%clk 0:03:00.7]}
4. cxd5 {[%clk 0:02:58.7]} 4... exd5 {[%clk 0:03:00.8]} 5. Bg5 {[%clk
0:02:59.3]} 5... c6 {[%clk 0:03:01.4]} 6. e3 {[%clk 0:03:00]} 6... Be7 {[%clk
0:03:02]} 7. Bd3 {[%clk 0:03:00.2]} 7... O-O {[%clk 0:03:02.6]} 8. Qc2 {[%clk
0:03:00.8]} 8... Nbd7 {[%clk 0:03:03]} 9. Nf3 {[%clk 0:03:00.4]} 9... Re8 {[%clk
0:03:03.6]} 10. O-O-O {[%clk 0:03:00.5]} 10... b5 {[%clk 0:02:58.7]} 11. Kb1
{[%clk 0:03:00.1]} 11... a5 {[%clk 0:02:57.5]} 12. Ne2 {[%clk 0:02:58.8]} 12...
Bb7 {[%clk 0:02:49.2]} 13. g4 {[%clk 0:02:59.2]} 13... Ne4 {[%clk 0:02:38.8]}
14. Bxe4 {[%clk 0:02:54.9]} 14... dxe4 {[%clk 0:02:38.6]} 15. Bxe7 {[%clk
0:02:54.7]} 15... Qxe7 {[%clk 0:02:39.5]} 16. Nd2 {[%clk 0:02:47.7]} 16... c5
{[%clk 0:02:39.8]} 17. dxc5 {[%clk 0:02:21.6]} 17... Nxc5 {[%clk 0:02:38.6]} 18.
Nb3 {[%clk 0:02:22.3]} 18... Nd3 {[%clk 0:02:28.2]} 19. Ng3 {[%clk 0:02:07.4]}
19... Rac8 {[%clk 0:02:23.4]} 20. Qd2 {[%clk 0:02:05.3]} 20... a4 {[%clk
0:02:22.4]} 21. Nd4 {[%clk 0:02:05]} 21... b4 {[%clk 0:02:07.4]} 22. f3 {[%clk
0:01:34.4]} 22... b3 {[%clk 0:01:55.4]} 23. a3 {[%clk 0:01:23.5]} 23... Nc5
{[%clk 0:01:38.1]} 24. Ndf5 {[%clk 0:01:23.6]} 24... Qe6 {[%clk 0:01:23.3]} 25.
Nh5 {[%clk 0:00:47.6]} 25... exf3 {[%clk 0:01:20.7]} 26. Nfxg7 {[%clk
0:00:41.6]} 26... Qg6+ {[%clk 0:01:12.9]} 27. Ka1 {[%clk 0:00:42]} 27... Ne4
{[%clk 0:01:04.9]} 28. Qd4 {[%clk 0:00:39]} 28... h6 {[%clk 0:00:39.3]} 29. Nxe8
{[%clk 0:00:34]} 29... Rxe8 {[%clk 0:00:39.4]} 30. Qd7 {[%clk 0:00:31.6]} 30...
Bc6 {[%clk 0:00:39.4]} 31. Qd4 {[%clk 0:00:23.8]} 31... f2 {[%clk 0:00:22.6]}
32. Rhf1 {[%clk 0:00:23.1]} 32... Qxg4 {[%clk 0:00:19.4]} 33. Rxf2 {[%clk
0:00:22.8]} 33... Qxh5 {[%clk 0:00:18.6]} 34. Rg1+ {[%clk 0:00:21.6]} 34... Ng5
{[%clk 0:00:18.9]} 35. h4 {[%clk 0:00:20.7]} 35... Qg6 {[%clk 0:00:06.6]} 36.
hxg5 {[%clk 0:00:20.4]} 36... hxg5 {[%clk 0:00:07.5]} 37. Rf6 {[%clk 0:00:19.7]}
37... Qc2 {[%clk 0:00:05]} 38. Rxg5+ {[%clk 0:00:16.5]} 38... Kf8 {[%clk
0:00:05.5]} 39. Rf1 {[%clk 0:00:07.9]} 39... Be4 {[%clk 0:00:04.5]} 40. Qd6+
{[%clk 0:00:06.7]} 40... Re7 {[%clk 0:00:04.9]} 41. Qb8+ {[%clk 0:00:05.7]}
41... Re8 {[%clk 0:00:04.8]} 42. Qb4+ {[%clk 0:00:06]} 42... Re7 {[%clk
0:00:05.4]} 43. Rg8+ {[%clk 0:00:05.6]} 43... Kxg8 {[%clk 0:00:05.6]} 44. Qxe7
{[%clk 0:00:05.8]} 44... Bg6 {[%clk 0:00:05.9]} 45. Qe5 {[%clk 0:00:04.1]} 45...
Qd3 {[%clk 0:00:05.2]} 46. Rh1 {[%clk 0:00:04]} 46... Bh7 {[%clk 0:00:05.8]} 47.
Qe8+ {[%clk 0:00:03.5]} 47... Kg7 {[%clk 0:00:05.9]} 48. Qe5+ {[%clk 0:00:04.2]}
48... Kg8 {[%clk 0:00:06.5]} 49. Rg1+ {[%clk 0:00:04.4]} 49... Bg6 {[%clk
0:00:06.6]} 50. Rh1 {[%clk 0:00:03.9]} 50... Bh7 {[%clk 0:00:06.6]} 1/2-1/2

[Event "Early-Titled-Tuesday-Blitz-September-26-2023"]
[Site "Chess.com"]
[Date "2023.09.26"]
[Round "2"]
[White "ArmanGhevondyanchess"]
[Black "scarabee43"]
[Result "1/2-1/2"]
[WhiteElo "2591"]
[BlackElo "2794"]
[TimeControl "180+1"]
[EndTime "8:18:29 PDT"]
[Termination "Game drawn by repetition"]

1. Nf3 {[%clk 0:03:00.9]} 1... d5 {[%clk 0:02:59.7]} 2. d4 {[%clk 0:03:00.5]}
2... Nf6 {[%clk 0:02:59.5]} 3. g3 {[%clk 0:02:59.7]} 3... e6 {[%clk 0:02:57]} 4.
Bg2 {[%clk 0:03:00]} 4... Be7 {[%clk 0:02:57.3]} 5. O-O {[%clk 0:03:00.8]} 5...
O-O {[%clk 0:02:57.5]} 6. c4 {[%clk 0:03:01.4]} 6... c6 {[%clk 0:02:57.4]} 7.
Nc3 {[%clk 0:03:01.3]} 7... Nbd7 {[%clk 0:02:55.1]} 8. b3 {[%clk 0:03:01.4]}
8... b6 {[%clk 0:02:54.6]} 9. Bb2 {[%clk 0:03:01.9]} 9... Bb7 {[%clk 0:02:51.9]}
10. Ne5 {[%clk 0:02:56.1]} 10... Nxe5 {[%clk 0:02:45.8]} 11. dxe5 {[%clk
0:02:55.9]} 11... Nd7 {[%clk 0:02:46.2]} 12. cxd5 {[%clk 0:02:55]} 12... cxd5
{[%clk 0:02:45.7]} 13. e4 {[%clk 0:02:54]} 13... d4 {[%clk 0:02:37.2]} 14. Qxd4
{[%clk 0:02:51.8]} 14... Bc5 {[%clk 0:02:37.3]} 15. Qd2 {[%clk 0:02:39.7]} 15...
Nxe5 {[%clk 0:02:37.4]} 16. Rfd1 {[%clk 0:02:37.1]} 16... Qf6 {[%clk 0:02:25.6]}
17. Na4 {[%clk 0:02:29.4]} 17... Nf3+ {[%clk 0:02:24]} 18. Bxf3 {[%clk 0:02:22]}
18... Qxf3 {[%clk 0:02:24.1]} 19. Nxc5 {[%clk 0:02:16.1]} 19... bxc5 {[%clk
0:02:24.2]} 20. Qc3 {[%clk 0:02:09.9]} 20... Qxc3 {[%clk 0:02:22.6]} 21. Bxc3
{[%clk 0:02:10.8]} 21... Bxe4 {[%clk 0:02:22.6]} 22. Rac1 {[%clk 0:02:04.3]}
22... Rfd8 {[%clk 0:02:16.4]} 23. Ba5 {[%clk 0:02:02]} 23... Rxd1+ {[%clk
0:02:15.9]} 24. Rxd1 {[%clk 0:02:02.9]} 24... Bd5 {[%clk 0:02:10.6]} 25. Rc1
{[%clk 0:01:55.3]} 25... Rc8 {[%clk 0:02:11]} 26. Bd2 {[%clk 0:01:50.8]} 26...
a6 {[%clk 0:02:03.3]} 27. Be3 {[%clk 0:01:49.7]} 27... c4 {[%clk 0:02:03.7]} 28.
bxc4 {[%clk 0:01:45.4]} 28... Bxc4 {[%clk 0:02:03.2]} 29. f4 {[%clk 0:01:40]}
29... Kf8 {[%clk 0:02:02.2]} 30. Bd4 {[%clk 0:01:37.3]} 30... f6 {[%clk
0:02:00.7]} 31. Kf2 {[%clk 0:01:37.6]} 31... Ke7 {[%clk 0:02:00.1]} 32. Ke3
{[%clk 0:01:37.9]} 32... Kd7 {[%clk 0:01:59.8]} 33. a3 {[%clk 0:01:34.6]} 33...
Kd6 {[%clk 0:01:55.1]} 34. Bc3 {[%clk 0:01:25.6]} 34... e5 {[%clk 0:01:31.1]}
35. fxe5+ {[%clk 0:01:19]} 35... fxe5 {[%clk 0:01:31.6]} 36. Bb4+ {[%clk
0:01:16.5]} 36... Ke6 {[%clk 0:01:31]} 37. h3 {[%clk 0:01:07.4]} 37... Rc6
{[%clk 0:01:25.7]} 38. g4 {[%clk 0:01:04.1]} 38... g5 {[%clk 0:01:08.3]} 39. Ba5
{[%clk 0:00:54]} 39... h6 {[%clk 0:01:05]} 40. Bb4 {[%clk 0:00:52.5]} 40... Kf7
{[%clk 0:01:02.3]} 41. Rc3 {[%clk 0:00:50.5]} 41... Kg6 {[%clk 0:00:52.1]} 42.
Be7 {[%clk 0:00:26.3]} 42... h5 {[%clk 0:00:41.1]} 43. Bb4 {[%clk 0:00:17.6]}
43... h4 {[%clk 0:00:29.8]} 44. Ke4 {[%clk 0:00:16.4]} 44... Bb5 {[%clk
0:00:26.8]} 45. Kxe5 {[%clk 0:00:13.8]} 45... Rxc3 {[%clk 0:00:26.2]} 46. Bxc3
{[%clk 0:00:14.7]} 46... Bf1 {[%clk 0:00:26.5]} 47. Ke4 {[%clk 0:00:14.7]} 47...
Bxh3 {[%clk 0:00:26.7]} 48. Kf3 {[%clk 0:00:15.6]} 48... Bf1 {[%clk 0:00:26.8]}
49. Bd2 {[%clk 0:00:15.3]} 49... Bd3 {[%clk 0:00:25.8]} 50. Be3 {[%clk
0:00:15.4]} 50... Bc2 {[%clk 0:00:25.9]} 51. Kg2 {[%clk 0:00:15.3]} 51... Bd1
{[%clk 0:00:26]} 52. Kh3 {[%clk 0:00:15.8]} 52... Be2 {[%clk 0:00:22.7]} 53. Bd2
{[%clk 0:00:16.3]} 53... Bf3 {[%clk 0:00:21.7]} 54. Be3 {[%clk 0:00:16.9]} 54...
a5 {[%clk 0:00:22]} 55. Bd2 {[%clk 0:00:17.4]} 55... a4 {[%clk 0:00:22.3]} 56.
Be3 {[%clk 0:00:18.1]} 56... Kf6 {[%clk 0:00:20.2]} 57. Bd2 {[%clk 0:00:18.6]}
57... Be2 {[%clk 0:00:20.8]} 58. Be3 {[%clk 0:00:19.1]} 58... Bf1+ {[%clk
0:00:21.2]} 59. Kh2 {[%clk 0:00:19.2]} 59... h3 {[%clk 0:00:21.4]} 60. Kg3
{[%clk 0:00:18.6]} 60... Bg2 {[%clk 0:00:21.5]} 61. Bd2 {[%clk 0:00:18.9]} 61...
Bf1 {[%clk 0:00:19.5]} 62. Bc3+ {[%clk 0:00:18.7]} 62... Ke6 {[%clk 0:00:19.1]}
63. Bd2 {[%clk 0:00:19.3]} 63... Kd5 {[%clk 0:00:18.3]} 64. Bxg5 {[%clk
0:00:19.3]} 64... Ke4 {[%clk 0:00:18.3]} 65. Be7 {[%clk 0:00:19.4]} 65... Ke5
{[%clk 0:00:17.2]} 66. g5 {[%clk 0:00:19.9]} 66... Kf5 {[%clk 0:00:17.6]} 67.
Bf6 {[%clk 0:00:20.3]} 67... Kg6 {[%clk 0:00:17.8]} 68. Kh2 {[%clk 0:00:21.2]}
68... Kf5 {[%clk 0:00:17.6]} 69. Bd8 {[%clk 0:00:22.1]} 69... Kg6 {[%clk
0:00:18]} 70. Bf6 {[%clk 0:00:23]} 70... Kf5 {[%clk 0:00:18.6]} 71. Bd8 {[%clk
0:00:23.9]} 71... Kg6 {[%clk 0:00:19.4]} 72. Kh1 {[%clk 0:00:24.4]} 72... Bg2+
{[%clk 0:00:18.8]} 73. Kh2 {[%clk 0:00:25.1]} 73... Bf1 {[%clk 0:00:19.1]}
1/2-1/2

[Event "Early-Titled-Tuesday-Blitz-September-26-2023"]
[Site "Chess.com"]
[Date "2023.09.26"]
[Round "2"]
[White "Boundless_Strike"]
[Black "falzehope0"]
[Result "1-0"]
[WhiteElo "2605"]
[BlackElo "2350"]
[TimeControl "180+1"]
[EndTime "8:18:31 PDT"]
[Termination "Boundless_Strike won by resignation"]

1. d4 {[%clk 0:03:00.9]} 1... d6 {[%clk 0:02:58]} 2. e4 {[%clk 0:03:00.6]} 2...
Nf6 {[%clk 0:02:57.6]} 3. Nc3 {[%clk 0:03:00.6]} 3... Nbd7 {[%clk 0:02:57.3]} 4.
Nf3 {[%clk 0:02:59.6]} 4... e5 {[%clk 0:02:57.7]} 5. g4 {[%clk 0:03:00.2]} 5...
h6 {[%clk 0:02:55.2]} 6. Rg1 {[%clk 0:02:58]} 6... Be7 {[%clk 0:02:55]} 7. Be3
{[%clk 0:02:51.2]} 7... c6 {[%clk 0:02:55]} 8. Qd2 {[%clk 0:02:45.4]} 8... Qa5
{[%clk 0:02:54]} 9. O-O-O {[%clk 0:02:43.7]} 9... b5 {[%clk 0:02:53.5]} 10. dxe5
{[%clk 0:01:56.7]} 10... dxe5 {[%clk 0:02:50.3]} 11. g5 {[%clk 0:01:57]} 11...
hxg5 {[%clk 0:02:43.9]} 12. Nxg5 {[%clk 0:01:57.9]} 12... b4 {[%clk 0:02:41.8]}
13. Nb1 {[%clk 0:01:48.3]} 13... Qxa2 {[%clk 0:02:38.6]} 14. f4 {[%clk
0:01:41.5]} 14... Qa5 {[%clk 0:02:12.4]} 15. Bc4 {[%clk 0:01:36.7]} 15... Rf8
{[%clk 0:02:11.6]} 16. Qg2 {[%clk 0:00:40]} 16... Bc5 {[%clk 0:02:02.4]} 17. Rd3
{[%clk 0:00:32.4]} 17... Bxe3+ {[%clk 0:02:01.2]} 18. Rxe3 {[%clk 0:00:32.6]}
18... Qc5 {[%clk 0:02:01.4]} 19. Bxf7+ {[%clk 0:00:11.1]} 19... Rxf7 {[%clk
0:02:00.1]} 20. Ree1 {[%clk 0:00:09.2]} 20... Re7 {[%clk 0:01:55.4]} 21. f5
{[%clk 0:00:06.4]} 21... Ba6 {[%clk 0:01:49.4]} 22. Ne6 {[%clk 0:00:05.2]} 22...
Rxe6 {[%clk 0:01:49.3]} 23. fxe6 {[%clk 0:00:05.7]} 23... O-O-O {[%clk
0:01:38.2]} 24. exd7+ {[%clk 0:00:06.1]} 24... Nxd7 {[%clk 0:01:36.7]} 25. Qxg7
{[%clk 0:00:05.4]} 25... Bd3 {[%clk 0:01:28]} 26. Rg2 {[%clk 0:00:05.7]} 26...
Bc4 {[%clk 0:01:15.8]} 27. Nd2 {[%clk 0:00:04.5]} 27... Ba2 {[%clk 0:01:12.6]}
28. Qg3 {[%clk 0:00:03.1]} 28... Nb6 {[%clk 0:01:07.7]} 29. Qe3 {[%clk
0:00:03.4]} 29... Qa5 {[%clk 0:01:01.5]} 30. Nb3 {[%clk 0:00:04]} 30... Bxb3
{[%clk 0:01:00.8]} 31. cxb3 {[%clk 0:00:04.9]} 31... Rd4 {[%clk 0:00:55.7]} 32.
Kb1 {[%clk 0:00:04.4]} 32... Kb7 {[%clk 0:00:53.1]} 33. Rg7+ {[%clk 0:00:04]}
33... Nd7 {[%clk 0:00:51.5]} 34. Qe2 {[%clk 0:00:03.3]} 34... Kc7 {[%clk
0:00:49]} 35. Rd1 {[%clk 0:00:03.9]} 35... Qc5 {[%clk 0:00:46.2]} 36. Rxd4
{[%clk 0:00:03.7]} 36... Qxd4 {[%clk 0:00:45.8]} 37. Rg3 {[%clk 0:00:03.4]}
37... Nc5 {[%clk 0:00:45.1]} 38. Rg2 {[%clk 0:00:02.8]} 38... Nxe4 {[%clk
0:00:43.4]} 39. Rg4 {[%clk 0:00:03.2]} 39... Nd2+ {[%clk 0:00:17.2]} 40. Kc2
{[%clk 0:00:03.2]} 40... Qc5+ {[%clk 0:00:13.9]} 41. Kxd2 {[%clk 0:00:02.7]}
41... Qd5+ {[%clk 0:00:14.1]} 42. Kc2 {[%clk 0:00:02.4]} 42... Qe6 {[%clk
0:00:13]} 43. Kb1 {[%clk 0:00:02.3]} 43... Kb6 {[%clk 0:00:13.6]} 44. Rxb4+
{[%clk 0:00:02.2]} 44... Kc7 {[%clk 0:00:13.7]} 45. Re4 {[%clk 0:00:03.1]} 45...
Qf5 {[%clk 0:00:13.6]} 46. h4 {[%clk 0:00:04]} 46... Qg6 {[%clk 0:00:13]} 47.
Ka2 {[%clk 0:00:04.4]} 47... Qh7 {[%clk 0:00:13.9]} 48. Rxe5 {[%clk 0:00:03.9]}
48... Kb6 {[%clk 0:00:14.8]} 49. Qe3+ {[%clk 0:00:03.6]} 49... Ka6 {[%clk
0:00:13.2]} 50. h5 {[%clk 0:00:04.1]} 50... Qc7 {[%clk 0:00:10.3]} 51. Qe4
{[%clk 0:00:04]} 51... Kb6 {[%clk 0:00:09.7]} 52. Qb4+ {[%clk 0:00:04]} 52...
Ka6 {[%clk 0:00:10.2]} 53. Qc4+ {[%clk 0:00:04.4]} 53... Kb6 {[%clk 0:00:10.4]}
54. Qc5+ {[%clk 0:00:05]} 54... Kb7 {[%clk 0:00:10.6]} 55. Re7 {[%clk
0:00:04.5]} 1-0

[Event "Early-Titled-Tuesday-Blitz-September-26-2023"]
[Site "Chess.com"]
[Date "2023.09.26"]
[Round "2"]
[White "Ermito2020"]
[Black "Hongjin"]
[Result "1-0"]
[WhiteElo "2676"]
[BlackElo "2344"]
[TimeControl "180+1"]
[EndTime "8:18:33 PDT"]
[Termination "Ermito2020 won by resignation"]

1. e4 {[%clk 0:03:00.9]} 1... c5 {[%clk 0:02:58.2]} 2. Nf3 {[%clk 0:03:00.6]}
2... Nf6 {[%clk 0:02:58.7]} 3. e5 {[%clk 0:02:58.1]} 3... Nd5 {[%clk 0:02:58.6]}
4. Nc3 {[%clk 0:02:52.7]} 4... Nxc3 {[%clk 0:02:57.9]} 5. dxc3 {[%clk
0:02:52.1]} 5... Nc6 {[%clk 0:02:58.8]} 6. Bf4 {[%clk 0:02:47.5]} 6... Qb6
{[%clk 0:02:56.3]} 7. b3 {[%clk 0:02:39.5]} 7... Qc7 {[%clk 0:02:53.5]} 8. Qd2
{[%clk 0:02:37.7]} 8... e6 {[%clk 0:02:47.9]} 9. O-O-O {[%clk 0:02:35.6]} 9...
a6 {[%clk 0:02:48.1]} 10. Kb1 {[%clk 0:02:23.6]} 10... b5 {[%clk 0:02:47.8]} 11.
Be2 {[%clk 0:02:15]} 11... Ne7 {[%clk 0:02:29]} 12. Ng5 {[%clk 0:01:56.1]} 12...
c4 {[%clk 0:02:07.6]} 13. Ne4 {[%clk 0:01:25.1]} 13... Nd5 {[%clk 0:02:00.5]}
14. Nd6+ {[%clk 0:01:25.3]} 14... Bxd6 {[%clk 0:01:59.1]} 15. exd6 {[%clk
0:01:26.2]} 15... Qc6 {[%clk 0:01:51.3]} 16. Bf3 {[%clk 0:01:23.9]} 16... Bb7
{[%clk 0:01:43.1]} 17. Kb2 {[%clk 0:01:15.3]} 17... O-O {[%clk 0:01:36]} 18. Qe1
{[%clk 0:01:06.4]} 18... a5 {[%clk 0:01:26.5]} 19. Bxd5 {[%clk 0:01:05.9]} 19...
exd5 {[%clk 0:01:27.4]} 20. Qd2 {[%clk 0:01:04.9]} 20... b4 {[%clk 0:01:23.9]}
21. cxb4 {[%clk 0:00:55.8]} 21... axb4 {[%clk 0:01:21.9]} 22. Qxb4 {[%clk
0:00:56.4]} 22... c3+ {[%clk 0:01:19.8]} 23. Kb1 {[%clk 0:00:56.5]} 23... Rfb8
{[%clk 0:00:48.5]} 24. Be5 {[%clk 0:00:55.6]} 24... Qa6 {[%clk 0:00:39.1]} 25.
a4 {[%clk 0:00:50.3]} 25... Bc6 {[%clk 0:00:21.1]} 26. Qxc3 {[%clk 0:00:48.1]}
26... Qxa4 {[%clk 0:00:19.6]} 27. Bxg7 {[%clk 0:00:42.6]} 27... Qa2+ {[%clk
0:00:17.5]} 28. Kc1 {[%clk 0:00:42.2]} 28... Qa3+ {[%clk 0:00:13.4]} 29. Qb2
{[%clk 0:00:41.1]} 29... h6 {[%clk 0:00:05.4]} 30. Qxa3 {[%clk 0:00:37.6]} 30...
Rxa3 {[%clk 0:00:05]} 31. Bxh6 {[%clk 0:00:37.6]} 31... Kh7 {[%clk 0:00:05.1]}
32. Be3 {[%clk 0:00:36.7]} 32... Re8 {[%clk 0:00:04.9]} 33. Kb2 {[%clk
0:00:36.1]} 33... Raa8 {[%clk 0:00:04.7]} 34. Ra1 {[%clk 0:00:35.8]} 34... Rab8
{[%clk 0:00:05.1]} 35. Bd4 {[%clk 0:00:31.8]} 35... Kg6 {[%clk 0:00:06]} 36.
Rhe1 {[%clk 0:00:31.1]} 36... Re4 {[%clk 0:00:06.6]} 37. Rxe4 {[%clk 0:00:30.3]}
37... dxe4 {[%clk 0:00:07.5]} 38. Be3 {[%clk 0:00:31.2]} 38... f5 {[%clk
0:00:07.5]} 39. g3 {[%clk 0:00:30.9]} 39... Kf6 {[%clk 0:00:08]} 40. Ra5 {[%clk
0:00:28.9]} 40... Ke6 {[%clk 0:00:08]} 41. Bf4 {[%clk 0:00:29.3]} 41... Rh8
{[%clk 0:00:06.3]} 42. h4 {[%clk 0:00:28.7]} 42... Rg8 {[%clk 0:00:06.1]} 43.
Re5+ {[%clk 0:00:28.7]} 43... Kf6 {[%clk 0:00:06.1]} 44. Rc5 {[%clk 0:00:29.5]}
44... Ke6 {[%clk 0:00:06.6]} 45. b4 {[%clk 0:00:29.4]} 45... Rb8 {[%clk
0:00:06.6]} 46. Kb3 {[%clk 0:00:28.5]} 46... Bd5+ {[%clk 0:00:05.4]} 47. Kc3
{[%clk 0:00:28.9]} 47... Ra8 {[%clk 0:00:04.9]} 48. h5 {[%clk 0:00:28.4]} 48...
Ra3+ {[%clk 0:00:04.1]} 49. Kd2 {[%clk 0:00:28.6]} 49... Ra2 {[%clk 0:00:02.6]}
50. h6 {[%clk 0:00:28.2]} 50... Ra8 {[%clk 0:00:02.8]} 51. b5 {[%clk 0:00:27.8]}
51... Rh8 {[%clk 0:00:02.9]} 52. c4 {[%clk 0:00:27.8]} 52... Bb7 {[%clk
0:00:02.4]} 53. Re5+ {[%clk 0:00:27.9]} 53... Kf6 {[%clk 0:00:02.5]} 54. Re7
{[%clk 0:00:28.8]} 54... Bc8 {[%clk 0:00:02.6]} 55. Be5+ {[%clk 0:00:28.8]}
55... Kg6 {[%clk 0:00:02.7]} 56. Bxh8 {[%clk 0:00:29.7]} 56... f4 {[%clk
0:00:03]} 57. gxf4 {[%clk 0:00:29]} 57... e3+ {[%clk 0:00:03.9]} 58. fxe3 {[%clk
0:00:28.9]} 58... Ba6 {[%clk 0:00:04.8]} 59. Bd4 {[%clk 0:00:29.1]} 59... Kf5
{[%clk 0:00:05.7]} 60. bxa6 {[%clk 0:00:28.9]} 1-0